{"text_format":"2","workbook":"xlsx","n_sheets":5,"sheets":["Data","Summer 99_1","Fall 99_1","Fall 99_2","Fall 99_3"],"not_rendered":{"charts":4,"images":0,"macros":0,"external_links":0,"defined_names":1,"comments":0,"pivot_tables":0},"unopened":[],"bounds":{"document_bytes":16777216,"sheet_cells":100000,"run_cost":"one","rows_first":2000,"rows_last":500,"rows_between":2000,"halvings":0,"cell_chars":16384,"cell_head_chars":4096},"cells_cut":0,"cells_raw":0,"read":"whole","date_system":"1900"}

{"sheet":"Data","index":0,"n_rows":7,"n_cols":2,"rows_kept":7,"cut":false,"hidden":false,"merged":[]}
["Persons Name","State"]
["Alireza ShirKhodai","ToDo"]
["Hesam Hedieloo","Plan"]
["Mohammad Mohsen Talaie","Dev"]
["Not Assign","Evaluation"]
[null,"Deploy"]
[null,"Done"]

{"sheet":"Summer 99_1","index":1,"n_rows":27,"n_cols":9,"rows_kept":27,"cut":false,"hidden":false,"merged":[[23,3,23,4],[24,3,24,4],[25,3,25,4],[26,3,26,4]]}
["Tasks","Assign To","Evaluator","Weight","Status"]
["Design BIP","Hesam Hedieloo","Mohammad Mohsen Talaie",7,"Done"]
["Upgrade ScenGen","Hesam Hedieloo","Not Assign",7,"ToDo"]
["Pcie Dev","Hesam Hedieloo","Not Assign",15,"Done"]
["Design Player","Mohammad Mohsen Talaie","Hesam Hedieloo",15,"Done"]
["Upgrade Database Manger","Mohammad Mohsen Talaie","Hesam Hedieloo",7,"Done"]
["Upgrade Evocator","Mohammad Mohsen Talaie","Hesam Hedieloo",10,"Done"]
["Design CSM","Alireza ShirKhodai","Not Assign",33,"Dev"]
["UsModule Documentation","Alireza ShirKhodai","Not Assign",3,"Dev"]
{"$rows_empty":11}
["Task Count :",{"$f":"COUNTIF(A2:A20,\"*\")","v":8},"Sum Of Weight:",{"$f":"SUM(D2:D20)","v":97}]
["Count Of Done Tasks  :",{"$f":"COUNTIF(E2:E9,\"Done\")","v":5},"Sum Of Done Weight:",{"$f":"SUMIF(E2:E20,\"Done\",D2:D20)","v":54}]
["Count Of Remain Task  :",{"$f":"COUNTIF(A2:A20,\"*\") - COUNTIF(E2:E9,\"Done\")","v":3},"Sum Of Remain Weight:",{"$f":"D21-D22","v":43}]
["Person ","Task Count","Count of Done Task","Count of Remain Task",null,"Sum Of Weight","Sum Of Done Weight","Sum Of Remain Weight","Reason"]
["Alireza ShirKhodaie",{"$f":"COUNTIF(B2:B20,\"Alireza ShirKhodai\")","v":2},{"$f":"COUNTIFS(B2:B20,\"Alireza ShirKhodai\",E2:E20,\"Done\")","v":0},{"$f":"B25-C25","v":2},null,{"$f":"SUMIF(B2:B20,\"Alireza Shirkhodai\",D2:D20)","v":36},{"$f":"SUMIFS(D2:D20,B2:B20,\"Alireza Shirkhodai\",E2:E20,\"Done\")","v":0},{"$f":"F25-G25","v":36}]
["Hesam Hedieloo",{"$f":"COUNTIF(B2:B20,\"Hesam Hedieloo\")","v":3},{"$f":"COUNTIFS(B2:B20,\"Hesam Hedieloo\",E2:E20,\"Done\")","v":2},{"$f":"B26-C26","v":1},null,{"$f":"SUMIF(B2:B20,\"Hesam Hedieloo\",D2:D20)","v":29},{"$f":"SUMIFS(D2:D20,B2:B20,\"Hesam Hedieloo\",E2:E20,\"Done\")","v":22},{"$f":"F26-G26","v":7}]
["Mohammad Mohsen Talaie",{"$f":"COUNTIF(B2:B20,\"Mohammad Mohsen Talaie\")","v":3},{"$f":"COUNTIFS(B2:B20,\"Mohammad Mohsen Talaie\",E2:E20,\"Done\")","v":3},{"$f":"B27-C27","v":0},null,{"$f":"SUMIF(B2:B20,\"Mohammad Mohsen Talaie\",D2:D20)","v":32},{"$f":"SUMIFS(D2:D20,E2:E20,\"Done\",B2:B20,\"Mohammad Mohsen Talaie\")","v":32},{"$f":"F27-G27","v":0}]

{"sheet":"Fall 99_1","index":2,"n_rows":27,"n_cols":9,"rows_kept":27,"cut":false,"hidden":false,"merged":[[23,3,23,4],[24,3,24,4],[25,3,25,4],[26,3,26,4]]}
["Tasks","Assign To","Evaluator","Weight","Status"]
["CSM Class Diagrams","Alireza ShirKhodai","Hesam Hedieloo",20,"Dev"]
["Complet Docs","Alireza ShirKhodai","Mohammad Mohsen Talaie",5,"Dev"]
["B UI Implementation","Alireza ShirKhodai","Hesam Hedieloo",15,"Dev"]
["Complet Modules Structure","Hesam Hedieloo",null,5,"Done"]
["Upgrade Scengen","Hesam Hedieloo",null,7,"Done"]
["UI Binding","Hesam Hedieloo",null,60,"ToDo"]
["Connect Kernels To DB","Hesam Hedieloo",null,15,"Dev"]
["Player Implementation","Mohammad Mohsen Talaie","Hesam Hedieloo",15,"ToDo"]
["Upgrade BIP","Mohammad Mohsen Talaie","Hesam Hedieloo",20,"Done"]
["CSM Activity Diagrams","Mohammad Mohsen Talaie",null,15,"ToDo"]
["Scrum Works","Mohammad Mohsen Talaie","Not Assign",7,"Done"]
["Change Tint map and Gray map DB","Mohammad Mohsen Talaie","Hesam Hedieloo",7,"Done"]
{"$rows_empty":7}
["Task Count :",{"$f":"COUNTIF(A2:A20,\"*\")","v":12},"Sum Of Weight:",{"$f":"SUM(D2:D20)","v":191}]
["Count Of Done Tasks  :",{"$f":"COUNTIF(E2:E9,\"Done\")","v":2},"Sum Of Done Weight:",{"$f":"SUMIF(E2:E20,\"Done\",D2:D20)","v":46}]
["Count Of Remain Task  :",{"$f":"COUNTIF(A2:A20,\"*\") - COUNTIF(E2:E9,\"Done\")","v":10},"Sum Of Remain Weight:",{"$f":"D21-D22","v":145}]
["Person ","Task Count","Count of Done Task","Count of Remain Task",null,"Sum Of Weight","Sum Of Done Weight","Sum Of Remain Weight","Resone"]
["Alireza ShirKhodaie",{"$f":"COUNTIF(B2:B20,\"Alireza ShirKhodai\")","v":3},{"$f":"COUNTIFS(B2:B20,\"Alireza ShirKhodai\",E2:E20,\"Done\")","v":0},{"$f":"B25-C25","v":3},null,{"$f":"SUMIF(B2:B20,\"Alireza Shirkhodai\",D2:D20)","v":40},{"$f":"SUMIFS(D2:D20,B2:B20,\"Alireza Shirkhodai\",E2:E20,\"Done\")","v":0},{"$f":"F25-G25","v":40}]
["Hesam Hedieloo",{"$f":"COUNTIF(B2:B20,\"Hesam Hedieloo\")","v":4},{"$f":"COUNTIFS(B2:B20,\"Hesam Hedieloo\",E2:E20,\"Done\")","v":2},{"$f":"B26-C26","v":2},null,{"$f":"SUMIF(B2:B20,\"Hesam Hedieloo\",D2:D20)","v":87},{"$f":"SUMIFS(D2:D20,B2:B20,\"Hesam Hedieloo\",E2:E20,\"Done\")","v":12},{"$f":"F26-G26","v":75}]
["Mohammad Mohsen Talaie",{"$f":"COUNTIF(B2:B20,\"Mohammad Mohsen Talaie\")","v":5},{"$f":"COUNTIFS(B2:B20,\"Mohammad Mohsen Talaie\",E2:E20,\"Done\")","v":3},{"$f":"B27-C27","v":2},null,{"$f":"SUMIF(B2:B20,\"Mohammad Mohsen Talaie\",D2:D20)","v":64},{"$f":"SUMIFS(D2:D20,E2:E20,\"Done\",B2:B20,\"Mohammad Mohsen Talaie\")","v":34},{"$f":"F27-G27","v":30}]

{"sheet":"Fall 99_2","index":3,"n_rows":27,"n_cols":9,"rows_kept":27,"cut":false,"hidden":false,"merged":[[23,3,23,4],[24,3,24,4],[25,3,25,4],[26,3,26,4]]}
["Tasks","Assign To","Evaluator","Weight","Status"]
["CSM class diagrams","Alireza ShirKhodai","Mohammad Mohsen Talaie",7,"ToDo"]
["Documentation","Alireza ShirKhodai","Hesam Hedieloo",5,"ToDo"]
["Complete B mode UI","Alireza ShirKhodai","Hesam Hedieloo",7,"ToDo"]
["UI bindings","Hesam Hedieloo","Not Assign",60,"ToDo"]
["Connect strategy to  Database","Hesam Hedieloo","Not Assign",6,"ToDo"]
["Receiver Tester","Hesam Hedieloo","Not Assign",15,"ToDo"]
["Player implementation","Mohammad Mohsen Talaie","Hesam Hedieloo",15,"ToDo"]
["CSM Activity diagrams","Mohammad Mohsen Talaie","Not Assign",15,"ToDo"]
["Upgrade Evocator for new BIP","Mohammad Mohsen Talaie","Hesam Hedieloo",7,"ToDo"]
["Scrum Tasks","Mohammad Mohsen Talaie","Not Assign",2,"Todo"]
{"$rows_empty":9}
["Task Count :",{"$f":"COUNTIF(A2:A20,\"*\")","v":10},"Sum Of Weight:",{"$f":"SUM(D2:D20)","v":139}]
["Count Of Done Tasks  :",{"$f":"COUNTIF(E2:E9,\"Done\")","v":0},"Sum Of Done Weight:",{"$f":"SUMIF(E2:E20,\"Done\",D2:D20)","v":0}]
["Count Of Remain Task  :",{"$f":"COUNTIF(A2:A20,\"*\") - COUNTIF(E2:E9,\"Done\")","v":10},"Sum Of Remain Weight:",{"$f":"D21-D22","v":139}]
["Person ","Task Count","Count of Done Task","Count of Remain Task",null,"Sum Of Weight","Sum Of Done Weight","Sum Of Remain Weight","Resone"]
["Alireza ShirKhodaie",{"$f":"COUNTIF(B2:B20,\"Alireza ShirKhodai\")","v":3},{"$f":"COUNTIFS(B2:B20,\"Alireza ShirKhodai\",E2:E20,\"Done\")","v":0},{"$f":"B25-C25","v":3},null,{"$f":"SUMIF(B2:B20,\"Alireza Shirkhodai\",D2:D20)","v":19},{"$f":"SUMIFS(D2:D20,B2:B20,\"Alireza Shirkhodai\",E2:E20,\"Done\")","v":0},{"$f":"F25-G25","v":19}]
["Hesam Hedieloo",{"$f":"COUNTIF(B2:B20,\"Hesam Hedieloo\")","v":3},{"$f":"COUNTIFS(B2:B20,\"Hesam Hedieloo\",E2:E20,\"Done\")","v":0},{"$f":"B26-C26","v":3},null,{"$f":"SUMIF(B2:B20,\"Hesam Hedieloo\",D2:D20)","v":81},{"$f":"SUMIFS(D2:D20,B2:B20,\"Hesam Hedieloo\",E2:E20,\"Done\")","v":0},{"$f":"F26-G26","v":81}]
["Mohammad Mohsen Talaie",{"$f":"COUNTIF(B2:B20,\"Mohammad Mohsen Talaie\")","v":4},{"$f":"COUNTIFS(B2:B20,\"Mohammad Mohsen Talaie\",E2:E20,\"Done\")","v":0},{"$f":"B27-C27","v":4},null,{"$f":"SUMIF(B2:B20,\"Mohammad Mohsen Talaie\",D2:D20)","v":39},{"$f":"SUMIFS(D2:D20,E2:E20,\"Done\",B2:B20,\"Mohammad Mohsen Talaie\")","v":0},{"$f":"F27-G27","v":39}]

{"sheet":"Fall 99_3","index":4,"n_rows":27,"n_cols":9,"rows_kept":27,"cut":false,"hidden":false,"merged":[[23,3,23,4],[24,3,24,4],[25,3,25,4],[26,3,26,4]]}
["Tasks","Assign To","Evaluator","Weight","Status"]
{"$rows_empty":19}
["Task Count :",{"$f":"COUNTIF(A2:A20,\"*\")","v":0},"Sum Of Weight:",{"$f":"SUM(D2:D20)","v":0}]
["Count Of Done Tasks  :",{"$f":"COUNTIF(E2:E9,\"Done\")","v":0},"Sum Of Done Weight:",{"$f":"SUMIF(E2:E20,\"Done\",D2:D20)","v":0}]
["Count Of Remain Task  :",{"$f":"COUNTIF(A2:A20,\"*\") - COUNTIF(E2:E9,\"Done\")","v":0},"Sum Of Remain Weight:",{"$f":"D21-D22","v":0}]
["Person ","Task Count","Count of Done Task","Count of Remain Task",null,"Sum Of Weight","Sum Of Done Weight","Sum Of Remain Weight","Resone"]
["Alireza ShirKhodaie",{"$f":"COUNTIF(B2:B20,\"Alireza ShirKhodai\")","v":0},{"$f":"COUNTIFS(B2:B20,\"Alireza ShirKhodai\",E2:E20,\"Done\")","v":0},{"$f":"B25-C25","v":0},null,{"$f":"SUMIF(B2:B20,\"Alireza Shirkhodai\",D2:D20)","v":0},{"$f":"SUMIFS(D2:D20,B2:B20,\"Alireza Shirkhodai\",E2:E20,\"Done\")","v":0},{"$f":"F25-G25","v":0}]
["Hesam Hedieloo",{"$f":"COUNTIF(B2:B20,\"Hesam Hedieloo\")","v":0},{"$f":"COUNTIFS(B2:B20,\"Hesam Hedieloo\",E2:E20,\"Done\")","v":0},{"$f":"B26-C26","v":0},null,{"$f":"SUMIF(B2:B20,\"Hesam Hedieloo\",D2:D20)","v":0},{"$f":"SUMIFS(D2:D20,B2:B20,\"Hesam Hedieloo\",E2:E20,\"Done\")","v":0},{"$f":"F26-G26","v":0}]
["Mohammad Mohsen Talaie",{"$f":"COUNTIF(B2:B20,\"Mohammad Mohsen Talaie\")","v":0},{"$f":"COUNTIFS(B2:B20,\"Mohammad Mohsen Talaie\",E2:E20,\"Done\")","v":0},{"$f":"B27-C27","v":0},null,{"$f":"SUMIF(B2:B20,\"Mohammad Mohsen Talaie\",D2:D20)","v":0},{"$f":"SUMIFS(D2:D20,E2:E20,\"Done\",B2:B20,\"Mohammad Mohsen Talaie\")","v":0},{"$f":"F27-G27","v":0}]